bitfinex/quotes_SOLUSD_20260114
["timestamp","ask_amount","ask_price","bid_price","bid_amount"]
[1768391379600,22.33003689,143.92,143.88,0.6735694]
[1768391379900,0.099,143.91,143.87,24.32751788]
[1768391380504,0.099,143.91,143.87,25.00108728]
[1768391383019,0.099,143.91,143.88,7.62363871]
[1768391388631,2.1768706,143.91,143.88,7.62363871]
[1768391390228,0.099,143.91,143.88,7.62363871]
[1768391390437,2.1768706,143.91,143.88,7.62363871]
[1768391390832,2.69640199,143.9,143.87,6.95068291]
[1768391391039,12.68,143.89,143.87,6.95068291]
[1768391391534,12.68,143.89,143.87,7.62425231]
[1768391393337,12.68,143.89,143.88,0.6735694]
[1768391394120,11.23,143.89,143.88,6.9502363]
[1768391394325,11.23,143.89,143.87,6.9505306]
[1768391394638,11.23,143.89,143.87,7.6241]
[1768391394833,11.23,143.89,143.88,6.9502363]
[1768391395039,0.682514,143.94,143.9,0.6735694]
[1768391395224,9.70406515,143.95,143.89,6.94975328]
[1768391395225,10.38657915,143.95,143.91,2.75144]
[1768391395431,10.38657915,143.95,143.92,6.94830461]
[1768391395913,10.38657915,143.95,143.92,7.62187401]
[1768391396117,9.70406515,143.95,143.92,7.62187401]
[1768391397242,9.70406515,143.95,143.92,9.69974461]
[1768391397535,9.70406515,143.95,143.92,7.62187401]
[1768391399545,12.46444975,143.95,143.92,6.94830461]
[1768391400745,12.46444975,143.95,143.92,6.88830461]
[1768391401943,0.682514,143.94,143.92,6.88830461]
[1768391404424,0.682514,143.94,143.92,6.82830461]
[1768391405031,0.682514,143.92,143.89,6.94958627]
[1768391405233,14.7578706,143.93,143.89,6.94958627]
[1768391405234,2.79672806,143.91,143.89,6.94958627]
[1768391405439,14.7578706,143.9,143.88,6.95014307]
[1768391406148,12.68,143.9,143.88,6.95014307]
[1768391406331,14.7578706,143.9,143.88,6.95014307]
[1768391407649,14.7578706,143.9,143.88,6.89014307]
[1768391408034,2.0778706,143.89,143.87,6.95050253]
[1768391408268,2.79672806,143.89,143.87,6.95050253]
[1768391408555,2.79672806,143.89,143.86,7.66007313]
[1768391408752,2.0778706,143.88,143.86,6.95102638]
[1768391410053,0.71885746,143.87,143.85,17.37881276]
[1768391410550,2.0778706,143.88,143.85,17.37881276]
[1768391410949,2.0778706,143.87,143.84,6.95216907]
[1768391411252,2.0778706,143.87,143.8,0.70904675]
[1768391411253,2.0778706,143.85,143.8,0.70904675]
[1768391411551,3.24884553,143.83,143.81,6.95341292]
[1768391411959,3.24884553,143.83,143.82,6.95313586]
[1768391412161,15.92884553,143.84,143.79,0.70904675]
[1768391412459,3.96770299,143.82,143.79,0.70904675]
[1768391412754,3.96770299,143.83,143.79,0.70904675]
[1768391413250,3.96770299,143.83,143.8,6.95377055]
[1768391414150,0.71885746,143.83,143.8,7.6628173]
[1768391414460,3.96770299,143.83,143.79,6.95441045]
[1768391414939,3.24884553,143.82,143.79,6.95441045]
[1768391415145,13.39885746,143.81,143.79,6.95455809]
[1768391415642,12.68,143.81,143.79,6.95455809]
[1768391415843,16.64770299,143.83,143.8,7.66314967]
[1768391416052,12.68,143.83,143.81,0.70904675]
[1768391416237,12.68,143.83,143.81,7.66253787]
[1768391416433,3.24884553,143.85,143.82,0.70904675]
[1768391417244,7.67021314,143.86,143.82,0.70904675]
[1768391417546,3.96770299,143.85,143.82,0.70904675]
[1768391417753,3.96770299,143.85,143.81,0.70904675]
[1768391417938,0.71885746,143.85,143.81,0.70904675]
[1768391418141,3.96770299,143.85,143.81,0.70904675]
[1768391419256,0.71885746,143.84,143.81,0.70904675]
[1768391419437,3.96770299,143.84,143.81,0.70904675]
[1768391419966,3.96770299,143.84,143.81,7.66241228]
[1768391420975,0.71885746,143.84,143.81,7.66241228]
[1768391421566,3.24884553,143.85,143.81,7.66241228]
[1768391421768,3.92120621,143.85,143.81,7.66241228]
[1768391422680,0.67236068,143.84,143.81,7.66241228]
[1768391423065,3.92120621,143.84,143.81,7.66241228]
[1768391424284,0.67236068,143.84,143.81,7.66241228]
[1768391424479,3.92120621,143.85,143.82,0.7099283]
[1768391424668,6.95111071,143.87,143.83,0.7099283]
[1768391424669,3.92120621,143.87,143.83,0.7099283]
[1768391426275,3.24884553,143.88,143.84,25.04252006]
[1768391426477,7.62181137,143.9,143.85,0.7099283]
[1768391426786,3.92120621,143.89,143.85,0.7099283]
[1768391427177,3.92120621,143.89,143.85,13.3899283]
[1768391427560,3.92120621,143.89,143.85,0.7099283]
[1768391427759,3.92120621,143.89,143.85,13.3899283]
[1768391427961,3.92120621,143.88,143.85,13.3899283]
[1768391428166,3.92120621,143.88,143.85,20.34149768]
[1768391428388,3.24884553,143.88,143.85,20.34149768]
[1768391428684,10.87102489,143.89,143.85,20.34149768]
[1768391428882,3.24884553,143.9,143.86,0.7099283]
[1768391429088,3.92120621,143.91,143.86,0.7099283]
[1768391429667,0.67236068,143.91,143.87,0.7099283]
[1768391429869,0.67236068,143.91,143.88,13.3899283]
[1768391430080,0.67236068,143.91,143.88,13.3299283]
[1768391430476,3.92120621,143.91,143.88,12.62]
[1768391430660,3.92120621,143.9,143.88,12.62]
[1768391430866,3.92120621,143.9,143.87,19.63041058]
[1768391431080,3.92120621,143.9,143.87,6.95041058]
[1768391431388,3.24884553,143.89,143.87,6.95041058]
[1768391433075,3.24884553,143.89,143.87,7.66033888]
[1768391433485,3.92120621,143.9,143.87,7.66033888]
[1768391434090,3.92120621,143.88,143.86,12.68]
[1768391434391,3.24884553,143.87,143.86,12.68]
[1768391434884,3.92120621,143.88,143.86,12.68]
[1768391435689,3.24884553,143.87,143.86,12.68]
[1768391435866,0.70163324,143.86,143.82,0.68701956]
[1768391436071,3.95047877,143.86,143.83,19.63237298]
[1768391436373,3.95047877,143.86,143.83,20.31939254]
[1768391437289,3.95047877,143.86,143.84,6.95213534]
[1768391437789,0.70163324,143.88,143.84,7.6391549]
[1768391437992,3.95047877,143.88,143.84,7.6391549]
[1768391438486,0.70163324,143.87,143.84,7.6391549]
[1768391440393,3.95047877,143.88,143.85,0.68701956]
[1768391440883,0.70163324,143.87,143.84,7.6391549]
[1768391442780,3.95047877,143.87,143.84,7.6391549]
[1768391444712,10.90085403,143.88,143.84,7.6391549]
[1768391444998,0.70163324,143.87,143.84,6.95213534]
[1768391445176,0.70163324,143.87,143.84,7.6391549]
[1768391446174,10.90085297,143.88,143.85,0.68701956]
[1768391446374,7.65200744,143.88,143.85,0.68701956]
[1768391447197,0.70163324,143.87,143.84,7.6391549]
[1768391447387,10.90037878,143.89,143.86,0.68701956]
[1768391448179,3.95047877,143.89,143.86,0.68701956]
[1768391448580,0.70163324,143.88,143.85,7.6385588]
[1768391448980,3.95047877,143.88,143.85,7.6385588]
[1768391449182,10.90093023,143.88,143.85,0.68701956]
[1768391449497,3.24884553,143.87,143.84,7.63907332]
[1768391449879,3.24884553,143.87,143.84,20.31907332]
[1768391450079,3.95047877,143.87,143.84,20.31907332]
[1768391450276,3.24884553,143.87,143.85,6.95167671]
[1768391450480,3.95047877,143.87,143.85,6.95167671]
[1768391450703,3.95047877,143.87,143.84,6.95197806]
[1768391451400,3.95047877,143.87,143.84,7.63899762]
[1768391451817,3.24884553,143.87,143.84,7.63899762]
[1768391453906,7.65190199,143.88,143.84,7.63899762]
[1768391454207,3.24884553,143.87,143.84,7.63899762]
[1768391456111,0.70163324,143.87,143.84,7.63899762]
[1768391456412,3.24884553,143.87,143.84,7.63899762]
[1768391457308,3.95047877,143.87,143.84,0.68701956]
[1768391458505,10.9012057,143.87,143.84,0.68701956]
[1768391458711,10.9012057,143.87,143.84,7.63914389]
[1768391459805,0.70163324,143.86,143.83,12.68]
[1768391460213,7.65236017,143.87,143.83,13.36701956]
[1768391460401,10.9012057,143.87,143.83,13.36701956]
[1768391460599,0.70163324,143.86,143.83,13.36701956]
[1768391460805,10.19957246,143.87,143.81,0.68701956]
[1768391460806,3.95047877,143.84,143.81,0.68701956]
[1768391461012,3.95047877,143.84,143.8,20.32096471]
[1768391461297,3.24884553,143.83,143.8,20.32096471]
[1768391461714,3.95047877,143.83,143.8,20.32096471]
[1768391462726,10.90294022,143.84,143.81,0.68701956]
[1768391463502,3.95047877,143.83,143.77,17.38823079]
[1768391463707,3.95047877,143.82,143.79,0.68701956]
[1768391463910,3.24884553,143.82,143.79,0.68701956]
[1768391464534,10.20224415,143.82,143.79,0.68701956]
[1768391464709,3.24884553,143.8,143.77,7.64231466]
[1768391465220,6.95216907,143.84,143.79,7.65409821]
[1768391465403,3.24884553,143.83,143.8,0.69954697]
[1768391466513,7.62890754,143.84,143.8,7.65321797]
[1768391466720,10.87775307,143.84,143.8,7.65321797]
[1768391466913,7.62890754,143.84,143.81,0.69954697]
[1768391467108,10.87775307,143.84,143.81,0.69954697]
[1768391468329,7.62890754,143.84,143.8,7.65362029]
[1768391468516,10.2015176,143.83,143.8,13.37954697]
[1768391469004,3.925584,143.82,143.79,13.37954697]
[1768391469515,3.89558401,143.82,143.79,20.33413071]
[1768391470124,0.57673847,143.8,143.76,7.65537232]
[1768391470330,0.57673847,143.8,143.76,20.33537232]
[1768391470331,0.06900001,143.79,143.76,20.33537232]
[1768391470630,10.20302345,143.8,143.77,0.69954697]
[1768391470836,3.24884553,143.8,143.77,7.65508604]
[1768391471130,10.20267681,143.81,143.77,7.65508604]
[1768391471509,10.20267681,143.81,143.78,0.69954697]
[1768391471909,6.95383128,143.81,143.78,0.69954697]
[1768391473002,10.74893227,143.82,143.78,7.65458026]
[1768391473512,9.57984575,143.82,143.78,0.69954697]
[1768391473819,2.17875901,143.81,143.77,20.33492157]
[1768391474530,9.13251996,143.81,143.77,20.33492157]
[1768391474910,9.13251996,143.81,143.78,0.69954697]
[1768391475732,9.13251996,143.81,143.77,0.69954697]
[1768391475911,9.13251996,143.81,143.77,13.37954697]
[1768391476111,7.05276095,143.81,143.77,13.37954697]
[1768391476307,9.13251996,143.81,143.77,13.37954697]
[1768391477008,2.07975901,143.81,143.78,0.69954697]
[1768391477228,9.03311044,143.82,143.78,0.69954697]
[1768391478433,9.13211044,143.82,143.78,0.69954697]
[1768391479012,6.95335143,143.82,143.79,0.69954697]
[1768391479307,9.03311044,143.82,143.79,0.69954697]
[1768391479735,6.95335143,143.82,143.79,0.69954697]
[1768391481131,9.57488034,143.83,143.79,7.65409091]
[1768391482033,9.57488034,143.83,143.79,20.33409091]
[1768391482237,7.49512133,143.83,143.79,20.33409091]
[1768391482535,9.57488034,143.83,143.79,20.33409091]
[1768391482729,9.03299216,143.82,143.79,13.37954697]
[1768391482932,9.03299216,143.82,143.8,0.68613701]
[1768391484643,9.13642477,143.82,143.79,0.68613701]
[1768391484829,9.03299216,143.82,143.79,12.68]
[1768391485139,9.03299216,143.82,143.79,13.36613701]
[1768391485723,2.07975901,143.81,143.79,13.36613701]
[1768391486121,9.03342303,143.81,143.77,7.6415904]
[1768391486321,2.07975901,143.8,143.77,13.36613701]
[1768391486549,6.95366402,143.81,143.78,0.68613701]
[1768391486734,2.07975901,143.8,143.78,0.68613701]
[1768391487037,6.95366402,143.81,143.78,0.68613701]
[1768391487222,9.03342303,143.81,143.78,0.68613701]
[1768391487624,6.95366402,143.81,143.79,0.68613701]
[1768391490843,9.03342303,143.81,143.79,0.68613701]
[1768391491726,6.95366402,143.81,143.79,0.68613701]
[1768391491948,9.03342303,143.81,143.79,0.68613701]
[1768391493037,6.95366402,143.81,143.79,0.68613701]
[1768391493238,9.03342303,143.81,143.79,0.68613701]
[1768391495445,2.07975901,143.8,143.77,7.64955409]
[1768391495650,2.61763182,143.8,143.77,20.32955409]
[1768391495828,2.07975901,143.8,143.77,20.32955409]
[1768391496653,2.07975901,143.8,143.78,0.69422985]
[1768391497638,2.07975901,143.8,143.77,20.32955409]
[1768391499045,2.07975901,143.8,143.78,0.69422985]
[1768391499660,9.03342303,143.81,143.78,7.64927943]
[1768391500231,2.07975901,143.8,143.78,7.64927943]
[1768391500431,6.95366402,143.81,143.78,7.64927943]
[1768391500731,2.07975901,143.8,143.78,0.69422985]
[1768391503949,6.95366402,143.81,143.78,7.64924454]
[1768391504151,2.17875901,143.81,143.78,7.64924454]
[1768391505256,9.13243146,143.81,143.78,0.69422985]
[1768391505457,2.07975901,143.8,143.78,0.69422985]
[1768391506167,2.18319162,143.79,143.76,19.63583317]
[1768391506346,0.53787281,143.78,143.76,19.63583317]
[1768391506840,2.07975901,143.79,143.76,7.65006302]
[1768391507046,2.6220201,143.78,143.75,6.9565044]
[1768391508158,2.6220201,143.78,143.75,7.65073425]
[1768391509847,0.54226109,143.78,143.75,7.65073425]
[1768391511249,2.6220201,143.78,143.75,7.65073425]
[1768391512055,9.57714174,143.78,143.74,20.43101326]
[1768391513069,2.18319162,143.77,143.74,20.43101326]
[1768391514166,0.10343261,143.77,143.74,20.43101326]
[1768391514760,0.099,143.77,143.74,20.43101326]
[1768391515154,7.50186012,143.78,143.74,20.43101326]
[1768391515355,0.54673848,143.78,143.75,0.69422985]
[1768391516969,0.54673848,143.78,143.75,7.65049771]
[1768391517871,9.58161526,143.78,143.75,7.65049771]
[1768391518169,9.58161526,143.78,143.75,0.69422985]
[1768391518549,9.58161526,143.78,143.75,7.65065552]
[1768391519167,2.62649749,143.78,143.75,7.65065552]
[1768391521073,2.07975901,143.78,143.75,7.65065552]
[1768391521564,9.58132201,143.79,143.75,7.65065552]
[1768391521970,9.03492111,143.78,143.75,7.65065552]
[1768391522273,9.13392111,143.78,143.75,7.65065552]
[1768391522473,9.13392111,143.78,143.75,0.69422985]
[1768391522773,2.6220201,143.77,143.74,7.75102594]
[1768391522969,2.6220201,143.77,143.74,20.43102594]
[1768391523364,2.07975901,143.76,143.74,20.43102594]
[1768391524476,2.6220201,143.77,143.74,20.43102594]
[1768391525362,7.50190058,143.78,143.74,20.43102594]
[1768391525556,9.58165959,143.78,143.75,0.67510744]
[1768391526179,7.5015411,143.79,143.76,0.67510744]
[1768391526477,9.58130011,143.79,143.76,0.67510744]
[1768391527459,7.5015411,143.79,143.76,0.67510744]
[1768391527658,9.03456163,143.79,143.76,0.67510744]
[1768391528064,9.03405008,143.8,143.77,0.67510744]
[1768391528355,9.13305008,143.8,143.77,0.67510744]
[1768391528957,7.05329107,143.8,143.77,0.67510744]
[1768391529155,9.13305008,143.8,143.77,0.67510744]
[1768391530260,7.05329107,143.8,143.77,0.67510744]
[1768391530461,9.13305008,143.8,143.77,0.67510744]
[1768391530683,2.07975901,143.79,143.77,0.67510744]
[1768391531388,7.05329107,143.8,143.77,0.67510744]
[1768391531591,2.07975901,143.79,143.77,0.67510744]
[1768391532587,7.05329107,143.8,143.77,0.67510744]
[1768391532785,2.07975901,143.79,143.77,0.67510744]
[1768391532983,26.22276228,143.81,143.78,0.67510744]
[1768391533182,2.07975901,143.8,143.78,0.67510744]
[1768391533387,3.2502009,143.8,143.78,0.67510744]
[1768391534091,10.75036906,143.82,143.78,0.67510744]
[1768391534472,3.2502009,143.81,143.78,0.67510744]
[1768391534666,10.20399673,143.81,143.78,0.67510744]
[1768391534863,3.2502009,143.8,143.78,0.67510744]
[1768391535069,7.05279583,143.81,143.78,0.67510744]
[1768391535283,3.2502009,143.8,143.78,0.67510744]
[1768391536194,10.30299673,143.81,143.78,0.67510744]
[1768391536489,17.38222542,143.83,143.78,13.35510744]
[1768391536664,3.2502009,143.81,143.78,13.35510744]
[1768391536867,3.2502009,143.81,143.78,0.67510744]
[1768391537068,3.2502009,143.81,143.78,13.35510744]
[1768391538595,10.20385741,143.81,143.78,13.35510744]
[1768391539092,0.44773848,143.82,143.79,0.67510744]
[1768391539093,10.65126788,143.82,143.79,0.67510744]
[1768391540173,10.2035294,143.82,143.79,0.67510744]
[1768391540385,6.9533285,143.82,143.79,0.67510744]
[1768391540689,3.69793938,143.84,143.8,0.66540091]
[1768391540867,3.2502009,143.84,143.8,0.66540091]
[1768391541473,10.20256908,143.84,143.8,0.66540091]
[1768391542890,6.95236818,143.84,143.8,0.66540091]
[1768391543083,10.20256908,143.84,143.8,0.66540091]
[1768391544098,10.30156908,143.84,143.8,0.66540091]
[1768391544596,3.2502009,143.83,143.8,0.66540091]
[1768391546502,3.2502009,143.83,143.8,7.61949653]
[1768391546684,10.30156908,143.84,143.8,7.61949653]
[1768391546881,3.2502009,143.84,143.81,0.66540091]
[1768391547892,3.2502009,143.84,143.81,13.34540091]
[1768391548211,3.2502009,143.84,143.81,20.29901821]
[1768391548797,3.2502009,143.84,143.81,7.61901821]
[1768391548798,4.55890596,143.83,143.81,7.61901821]
[1768391549102,3.2502009,143.84,143.81,7.61901821]
[1768391549285,4.55890872,143.83,143.81,7.61901821]
[1768391549603,3.2502009,143.84,143.81,7.61901821]
[1768391549805,4.5583907,143.83,143.81,7.61901821]
[1768391550006,3.2502009,143.84,143.81,7.61901821]
[1768391550206,4.60867742,143.83,143.81,7.61901821]
[1768391550408,3.2502009,143.84,143.81,7.61901821]
[1768391550704,4.60772536,143.83,143.81,7.61901821]
[1768391551005,3.3492009,143.84,143.81,7.61901821]
[1768391551302,3.2502009,143.84,143.82,5.09181525]
[1768391551505,3.2502009,143.84,143.83,5.03181525]
[1768391551704,3.2502009,143.84,143.83,4.97181525]
[1768391552286,3.3492009,143.84,143.81,7.61901821]
[1768391552487,3.3492009,143.84,143.81,6.9536173]
[1768391552693,3.3492009,143.84,143.81,7.61901821]
[1768391555502,3.69445199,143.83,143.8,7.67144113]
[1768391555813,3.69445199,143.83,143.8,20.35144113]
[1768391556115,3.2502009,143.83,143.81,0.71744487]
[1768391557400,3.2502009,143.83,143.81,7.67105862]
[1768391558493,3.3492009,143.83,143.8,0.71744487]
[1768391558709,3.3492009,143.83,143.8,20.35148053]
[1768391561420,0.099,143.83,143.8,20.35148053]
[1768391561802,0.44425109,143.82,143.8,6.95403566]
[1768391562003,3.69793938,143.83,143.8,7.67148053]
[1768391562210,0.44773848,143.83,143.8,7.67148053]
[1768391562409,3.3492009,143.82,143.79,7.67192252]
[1768391562610,3.69445199,143.81,143.78,7.67226586]
[1768391562816,3.664452,143.81,143.78,7.67226586]
[1768391563218,3.2502009,143.81,143.77,6.95547606]
[1768391563397,3.2502009,143.81,143.77,7.67292093]
[1768391563602,3.22020091,143.81,143.77,7.67292093]
[1768391564820,3.6379394,143.81,143.77,7.67292093]
[1768391565327,0.4145511,143.79,143.76,0.71744487]
[1768391565537,3.63475201,143.79,143.76,6.95577656]
[1768391565698,3.63475201,143.79,143.76,7.67322143]
[1768391568109,3.63475201,143.79,143.75,0.71744487]
[1768391568110,3.2502009,143.77,143.75,0.71744487]
[1768391568327,3.2502009,143.77,143.74,20.45416361]
[1768391568722,3.2502009,143.77,143.75,0.71744487]
[1768391569028,3.2502009,143.77,143.74,20.45416361]
[1768391569706,3.2502009,143.77,143.74,7.77416361]
[1768391570037,3.63192806,143.77,143.74,7.77416361]
[1768391572822,0.38172716,143.77,143.74,7.77416361]
[1768391573043,3.63192806,143.77,143.74,7.77416361]
[1768391574244,3.2502009,143.77,143.74,7.77416361]
[1768391574623,3.2502009,143.77,143.75,0.71744487]
[1768391576745,3.22020091,143.77,143.75,0.71744487]
[1768391577835,3.22020091,143.77,143.74,7.77416361]
[1768391579035,7.34289771,143.78,143.74,7.77416361]
[1768391579236,3.2502009,143.77,143.74,7.77416361]
[1768391579754,0.38485111,143.76,143.74,7.05671874]
[1768391579955,3.6379394,143.77,143.74,7.77416361]
[1768391580748,10.59351525,143.77,143.74,7.77416361]
[1768391580946,3.2502009,143.78,143.75,0.71744487]
[1768391581252,10.59291072,143.79,143.75,0.71744487]
[1768391582251,0.3877385,143.79,143.76,0.71744487]
[1768391582450,3.6379394,143.79,143.76,0.71744487]
[1768391584748,3.6379394,143.79,143.76,7.67330123]
[1768391585058,10.59255236,143.79,143.76,7.67330123]
[1768391585441,3.2502009,143.78,143.76,7.67330123]
[1768391585634,3.2502009,143.78,143.75,7.66965394]
[1768391585837,3.2502009,143.78,143.75,20.34965394]
[1768391587856,7.34235146,143.79,143.75,20.34965394]
[1768391588159,3.2502009,143.78,143.75,20.34965394]
[1768391591259,3.2502009,143.78,143.75,7.66965394]
[1768391595461,9.42295507,143.79,143.75,7.66965394]
[1768391595653,9.42295507,143.79,143.76,0.71316769]
[1768391595958,17.48368869,143.81,143.76,0.71316769]
[1768391596163,2.17960361,143.82,143.78,0.71316769]
[1768391597563,2.08060361,143.82,143.78,0.71316769]
[1768391597767,9.41892379,143.82,143.78,7.60816821]
[1768391597968,9.41892379,143.82,143.78,6.95500052]
[1768391599748,9.41892379,143.82,143.79,0.68979547]
[1768391599948,9.41892379,143.82,143.79,0.62979547]
[1768391601367,5.1487483,143.81,143.79,0.62979547]
[1768391601549,2.08060361,143.81,143.79,0.62979547]
[1768391601874,9.41892379,143.82,143.79,0.62979547]
[1768391602077,5.14892687,143.81,143.79,0.62979547]
[1768391602280,9.41892379,143.82,143.79,0.62979547]
[1768391602573,5.14959047,143.81,143.79,0.62979547]
[1768391602748,9.41892379,143.82,143.79,0.62979547]
[1768391602949,5.1495961,143.81,143.79,0.62979547]
[1768391603169,9.41892379,143.82,143.79,0.62979547]
[1768391603370,5.15033492,143.81,143.79,0.62979547]
[1768391603552,9.41892379,143.82,143.79,0.62979547]
[1768391603754,5.15062393,143.81,143.79,0.62979547]
[1768391603954,9.41892379,143.82,143.79,0.62979547]
[1768391604178,5.15062393,143.81,143.79,0.62979547]
[1768391604480,9.41892379,143.82,143.79,0.62979547]
[1768391604645,5.15133456,143.81,143.79,0.62979547]
[1768391604850,9.41892379,143.82,143.79,0.62979547]
[1768391605050,5.15091584,143.81,143.79,0.62979547]
[1768391605255,9.41892379,143.82,143.79,0.62979547]
[1768391605457,5.15173488,143.81,143.79,0.62979547]
[1768391605668,9.41892379,143.82,143.79,0.62979547]
[1768391605871,5.15173665,143.81,143.79,0.62979547]
[1768391606054,9.41892379,143.82,143.79,0.62979547]
[1768391606250,5.15173665,143.81,143.79,0.62979547]
[1768391606460,2.08060361,143.81,143.79,0.62979547]
[1768391608054,9.03426466,143.81,143.79,0.62979547]
[1768391611256,5.15491871,143.8,143.79,0.62979547]
[1768391611756,5.15491871,143.8,143.79,0.56979547]
[1768391613973,5.43497722,143.8,143.77,7.64514275]
[1768391614175,7.61829781,143.79,143.78,12.68]
[1768391614561,7.61829781,143.79,143.76,20.32554067]
[1768391614761,2.4644068,143.79,143.76,20.32554067]
[1768391615580,7.51568468,143.78,143.75,13.40338504]
[1768391615781,2.36169956,143.78,143.75,13.40338504]
[1768391615980,2.36169956,143.78,143.75,20.35983685]
[1768391616276,9.31711795,143.78,143.75,13.40338504]
[1768391617175,2.08060361,143.77,143.74,0.1]
[1768391617363,2.64834211,143.77,143.74,0.82338504]
[1768391618268,2.08060361,143.76,143.74,0.82338504]
[1768391619677,9.03640675,143.77,143.74,0.82338504]
[1768391619877,9.13540675,143.77,143.74,0.82338504]
[1768391620280,2.08060361,143.76,143.74,0.82338504]
[1768391620678,2.08060361,143.76,143.74,0.1]
[1768391620981,2.08060361,143.76,143.74,0.82338504]
[1768391621664,7.05480314,143.77,143.74,0.82338504]
[1768391621974,2.08060361,143.76,143.74,0.82338504]
[1768391625187,2.08060361,143.76,143.74,7.78037382]
[1768391625568,9.13540675,143.77,143.74,7.78037382]
[1768391625769,0.5677385,143.78,143.74,7.78036562]
[1768391625969,7.24026828,143.77,143.74,7.78036562]
[1768391626170,2.08060361,143.77,143.74,7.78036562]
[1768391628583,7.52323202,143.78,143.75,0.72338504]
[1768391628783,5.1598589,143.77,143.75,0.72338504]
[1768391628982,2.08060361,143.77,143.75,0.72338504]
[1768391629576,2.08060361,143.77,143.74,7.05698058]
[1768391629577,2.08060361,143.76,143.74,7.78036562]
[1768391629767,2.17960361,143.77,143.74,7.78036562]
[1768391630179,2.08060361,143.77,143.75,0.72338504]
[1768391631286,7.52323202,143.78,143.75,0.72338504]
[1768391631489,7.2400151,143.77,143.75,0.72338504]
[1768391631668,2.08060361,143.77,143.75,0.72338504]
[1768391634489,7.52184142,143.8,143.76,0.72338504]
[1768391634685,5.15901748,143.79,143.76,0.72338504]
[1768391634868,5.15901748,143.78,143.76,0.72338504]
[1768391635073,6.95410292,143.8,143.76,0.72338504]
[1768391635273,5.15901917,143.79,143.76,0.72338504]
[1768391635482,5.15901917,143.78,143.76,0.72338504]
[1768391635680,2.08060361,143.79,143.76,0.72338504]
[1768391635980,5.15892816,143.78,143.76,0.72338504]
[1768391636174,2.08060361,143.79,143.76,0.72338504]
[1768391636371,6.95410292,143.8,143.77,0.72338504]
[1768391636575,5.15907029,143.79,143.77,0.72338504]
[1768391636790,9.13370653,143.8,143.77,0.72338504]
[1768391636970,5.15908084,143.79,143.77,0.72338504]
[1768391637168,9.13370653,143.8,143.77,0.72338504]
[1768391637372,5.15906754,143.79,143.77,0.72338504]
[1768391637573,9.03470653,143.8,143.77,0.72338504]
[1768391637791,5.15906322,143.79,143.77,0.72338504]
[1768391637977,9.13370653,143.8,143.77,0.72338504]
[1768391638178,5.15906145,143.79,143.77,0.72338504]
[1768391638383,9.13370653,143.8,143.77,0.72338504]
[1768391638593,5.15906498,143.79,143.77,0.72338504]
[1768391638796,9.13370653,143.8,143.77,0.72338504]
[1768391638997,5.15906498,143.79,143.77,0.72338504]
[1768391639296,7.05310292,143.8,143.77,0.72338504]
[1768391639496,5.15871733,143.79,143.77,0.72338504]
[1768391639679,9.13370653,143.8,143.77,0.72338504]
[1768391639879,5.15871733,143.79,143.77,0.72338504]
[1768391640081,9.13370653,143.8,143.77,0.72338504]
[1768391640295,5.15871733,143.79,143.77,0.72338504]
[1768391640597,9.03523892,143.79,143.77,0.72338504]
[1768391640783,2.18424412,143.78,143.75,13.40338504]
[1768391640984,2.08060361,143.77,143.75,13.40338504]
[1768391641185,0.10364051,143.78,143.75,13.40338504]
[1768391641386,2.08060361,143.77,143.75,13.40338504]
[1768391641601,2.08060361,143.78,143.75,20.35981847]
[1768391641979,2.08060361,143.78,143.76,0.72338504]
[1768391642799,9.03523892,143.79,143.76,0.72338504]
[1768391643002,5.15753033,143.78,143.76,0.72338504]
[1768391643189,9.03523892,143.79,143.76,0.72338504]
[1768391643392,5.15795475,143.78,143.76,0.72338504]
[1768391643701,9.13423892,143.79,143.76,0.72338504]
[1768391643889,5.15837109,143.78,143.76,0.72338504]
[1768391644201,9.03523892,143.79,143.76,0.72338504]
[1768391646206,6.95463531,143.79,143.76,0.72338504]
[1768391646405,9.03523892,143.79,143.76,0.72338504]
[1768391646895,2.08060361,143.78,143.76,0.72338504]
[1768391648208,2.64834211,143.77,143.74,0.75862849]
[1768391648404,5.15918066,143.76,143.74,0.75862849]
[1768391648595,2.08060361,143.77,143.74,0.75862849]
[1768391648794,5.15969747,143.76,143.74,0.75862849]
[1768391648999,2.17960361,143.77,143.74,0.75862849]
[1768391649309,5.15969924,143.76,143.74,0.75862849]
[1768391649503,9.13551855,143.77,143.74,0.75862849]
[1768391649818,5.15988138,143.76,143.74,0.75862849]
[1768391650110,0.56305111,143.76,143.74,0.1]
[1768391650484,9.60425705,143.77,143.74,0.75862849]
[1768391650689,5.16010371,143.76,143.74,0.75862849]
[1768391650906,7.05509961,143.76,143.74,0.1]
[1768391652198,6.95609961,143.76,143.74,0.1]
[1768391652397,6.95609961,143.76,143.74,0.75862849]
[1768391653086,9.13570322,143.76,143.74,0.1]
[1768391655405,10.30730315,143.76,143.74,0.1]
[1768391657332,5.16066345,143.75,143.74,0.1]
[1768391658520,15.93243983,143.75,143.73,0.1]
[1768391658810,8.51629435,143.74,143.71,0.1]
[1768391659000,8.41265384,143.73,143.71,0.1]
[1768391659196,24.34782607,143.75,143.7,1e-08]